fUSD/lending_fUSD_20260430
["ID","MTS","AMOUNT","RATE_DAILY","PERIOD"]
[421360536,1777495849000,-150.0,0.0003975,120]
[421360537,1777495849000,-184.83,0.000398,30]
[421360541,1777495849000,-197.62691828,0.0003987,120]
[421360540,1777495849000,-3369.85146957,0.00039862,2]
[421360539,1777495849000,-11408.3985,0.00039827,2]
[421360543,1777495849000,-152.16569212,0.0003987,120]
[421360542,1777495849000,-189.80777703,0.0003987,120]
[421360496,1777495849000,-2079.7845,0.0003925,2]
[421360519,1777495849000,-197.62691828,0.00039596,120]
[421360523,1777495849000,-2234.9834,0.00039646,2]
[421360531,1777495849000,-2079.7845,0.00039726,2]
[421360517,1777495849000,-11408.3985,0.00039556,2]
[421360518,1777495849000,-150.0,0.00039579,2]
[421360492,1777495849000,-159.0,0.00039048,120]
[421360490,1777495849000,-189.80777703,0.00039048,120]
[421360544,1777495849000,-170.08825652,0.0003989,2]
[421360498,1777495849000,-197.62691828,0.00039322,120]
[421360495,1777495849000,-157.30420751,0.00039152,7]
[421360493,1777495849000,-162.31979731,0.000391,3]
[421360497,1777495849000,-11408.3985,0.00039284,2]
[421360512,1777495849000,-237687.11300473,0.000395,2]
[421360502,1777495849000,-188.39352,0.00039352,32]
[421360503,1777495849000,-11408.3985,0.0003942,2]
[421360504,1777495849000,-997.85,0.00039421,120]
[421360500,1777495849000,-152.16569212,0.00039322,120]
[421360514,1777495849000,-150.0,0.000395,120]
[421360515,1777495849000,-2000.0,0.00039516,5]
[421360501,1777495849000,-2234.9834,0.00039329,2]
[421360513,1777495849000,-150.0,0.000395,120]
[421360516,1777495849000,-997.85,0.00039521,120]
[421360511,1777495849000,-244.16224691,0.000395,120]
[421360506,1777495849000,-157.30420751,0.00039425,7]
[421360509,1777495849000,-2079.7845,0.00039488,2]
[421360510,1777495849000,-150.0,0.000395,120]
[421360507,1777495849000,-342.78,0.00039452,30]
[421360505,1777495849000,-500.0,0.00039425,120]
[421360508,1777495849000,-150.0,0.00039474,2]
[421360576,1777495850000,-169.50169967,0.0004,30]
[421360591,1777495850000,-500.0,0.0004,120]
[421360588,1777495850000,-622.0,0.0004,30]
[421360579,1777495850000,-20349.5082311,0.0004,120]
[421360573,1777495850000,-28481.28812283,0.0004,120]
[421360580,1777495850000,-16207.51670817,0.0004,120]
[421360572,1777495850000,-6898.25582159,0.0004,120]
[421360571,1777495850000,-968.37706792,0.0004,2]
[421360570,1777495850000,-306.81554781,0.0004,2]
[421360585,1777495850000,-514.04434914,0.0004,2]
[421360575,1777495850000,-538.9505589,0.0004,120]
[421360584,1777495850000,-617.81831813,0.0004,30]
[421360604,1777495850000,-150.0,0.0004,120]
[421360583,1777495850000,-5234.05282823,0.0004,7]
[421360587,1777495850000,-170.0,0.0004,120]
[421360590,1777495850000,-152.0,0.0004,120]
[421360593,1777495850000,-500.0,0.0004,120]
[421360592,1777495850000,-506.0,0.0004,120]
[421360589,1777495850000,-1500.0,0.0004,120]
[421360595,1777495850000,-209.64352613,0.0004,120]
[421360605,1777495850000,-150.0,0.0004,120]
[421360594,1777495850000,-500.0,0.0004,120]
[421360603,1777495850000,-349.50062332,0.0004,3]
[421360596,1777495850000,-55417.40464411,0.0004,7]
[421360578,1777495850000,-10823.84296989,0.0004,2]
[421360586,1777495850000,-10224.0,0.0004,120]
[421360582,1777495850000,-18231.74722038,0.0004,2]
[421360545,1777495850000,-342.04600343,0.000399,120]
[421360581,1777495850000,-170.96800929,0.0004,30]
[421360546,1777495850000,-244.598384,0.000399,120]
[421360599,1777495850000,-30797.2882363,0.0004,2]
[421360557,1777495850000,-2316.61019264,0.00039999,120]
[421360549,1777495850000,-500.0,0.000399,14]
[421360556,1777495850000,-157.30420751,0.00039973,7]
[421360555,1777495850000,-75142.0612709,0.0003997,2]
[421360553,1777495850000,-2234.9833,0.00039963,2]
[421360554,1777495850000,-2079.7847,0.00039963,2]
[421360551,1777495850000,-997.85,0.00039921,120]
[421360548,1777495850000,-500137.99594877,0.000399,20]
[421360547,1777495850000,-1018.0,0.000399,120]
[421360552,1777495850000,-11408.3996,0.00039963,2]
[421360577,1777495850000,-318.62842027,0.0004,2]
[421360550,1777495850000,-2878.24247484,0.000399,15]
[421360558,1777495850000,-50000.0,0.0004,54]
[421360568,1777495850000,-177.69102319,0.0004,120]
[421360564,1777495850000,-24051.37390013,0.0004,2]
[421360559,1777495850000,-34000.0,0.0004,30]
[421360566,1777495850000,-4161.61224481,0.0004,2]
[421360562,1777495850000,-200.13811954,0.0004,2]
[421360565,1777495850000,-1581.13474735,0.0004,2]
[421360561,1777495850000,-396.0,0.0004,30]
[421360563,1777495850000,-395.20042655,0.0004,2]
[421360560,1777495850000,-10371.62187605,0.0004,7]
[421360567,1777495850000,-566.85040353,0.0004,120]
[421360574,1777495850000,-213.9659459,0.0004,120]
[421360569,1777495850000,-364.22221459,0.0004,120]
[421360601,1777495850000,-819.61134575,0.0004,3]
[421360613,1777495850000,-275.94,0.0004,120]
[421360602,1777495850000,-485.21563976,0.0004,30]
[421360634,1777495850000,-500.0,0.00040069,26]
[421360637,1777495850000,-430.67,0.00040069,26]
[421360632,1777495850000,-500.0,0.00040069,26]
[421360636,1777495850000,-500.0,0.00040069,26]
[421360638,1777495850000,-150.0,0.00040095,120]
[421360639,1777495850000,-150.0,0.00040095,120]
[421360640,1777495850000,-150.0,0.00040095,120]
[421360641,1777495850000,-150.0,0.00040095,120]
[421360645,1777495850000,-197.62691828,0.00040144,120]
[421360643,1777495850000,-254.49,0.000401,30]
[421360598,1777495850000,-367.57665435,0.0004,3]
[421360649,1777495850000,-157.30420751,0.00040247,7]
[421360635,1777495850000,-500.0,0.00040069,26]
[421360644,1777495850000,-997.85,0.00040121,120]
[421360651,1777495850000,-150.0,0.0004025,120]
[421360646,1777495850000,-189.80777703,0.00040144,120]
[421360650,1777495850000,-173.1936728,0.0004025,120]
[421360648,1777495850000,-997.85,0.00040221,120]
[421360653,1777495850000,-997.85,0.00040321,120]
[421360652,1777495850000,-2118.76196131,0.00040281,120]
[421360656,1777495850000,-197.62691828,0.00040418,120]
[421360655,1777495850000,-254.49,0.000404,30]
[421360654,1777495850000,-256.66402533,0.000404,30]
[421360658,1777495850000,-152.16569212,0.00040418,120]
[421360657,1777495850000,-189.80777703,0.00040418,120]
[421360659,1777495850000,-702.23,0.00040419,120]
[421360642,1777495850000,-205882.81468061,0.000401,120]
[421360633,1777495850000,-500.0,0.00040069,26]
[421360647,1777495850000,-152.16569212,0.00040144,120]
[421360630,1777495850000,-442.34005905,0.00040062,120]
[421360631,1777495850000,-2500.0,0.00040064,5]
[421360600,1777495850000,-11974.889475,0.0004,4]
[421360607,1777495850000,-385.35,0.0004,120]
[421360606,1777495850000,-320.4,0.0004,120]
[421360611,1777495850000,-705.18,0.0004,120]
[421360608,1777495850000,-399.44,0.0004,120]
[421360610,1777495850000,-264.6338796,0.0004,120]
[421360609,1777495850000,-500.0,0.0004,120]
[421360616,1777495850000,-1578.06788974,0.0004,30]
[421360612,1777495850000,-211.08,0.0004,120]
[421360614,1777495850000,-417.47,0.0004,120]
[421360615,1777495850000,-1578.06788975,0.0004,30]
[421360597,1777495850000,-10765.33242347,0.0004,8]
[421360628,1777495850000,-300.0,0.00040062,2]
[421360618,1777495850000,-1576.08517333,0.00040019,110]
[421360623,1777495850000,-300.0,0.00040062,2]
[421360626,1777495850000,-300.0,0.00040062,2]
[421360622,1777495850000,-300.0,0.00040062,2]
[421360620,1777495850000,-1600.0,0.00040025,120]
[421360621,1777495850000,-441.43,0.00040062,2]
[421360629,1777495850000,-272.71,0.00040062,2]
[421360627,1777495850000,-300.0,0.00040062,2]
[421360625,1777495850000,-300.0,0.00040062,2]
[421360619,1777495850000,-997.85,0.00040021,120]
[421360617,1777495850000,-1578.06788974,0.0004,30]
[421360624,1777495850000,-300.0,0.00040062,2]
[421360675,1777495851000,-150.5,0.00040566,120]
[421360673,1777495851000,-150.5,0.00040556,120]
[421360677,1777495851000,-500.0,0.00040576,120]
[421360683,1777495851000,-4913.93799131,0.00040684,30]
[421360682,1777495851000,-997.85,0.00040621,120]
[421360679,1777495851000,-170.0,0.000406,120]
[421360678,1777495851000,-1542.27662375,0.00040599,60]
[421360680,1777495851000,-3000.0,0.00040612,5]
[421360681,1777495851000,-762.5452,0.00040619,30]
[421360674,1777495851000,-2000.0,0.00040562,2]
[421360676,1777495851000,-250.0,0.00040576,120]
[421360669,1777495851000,-150.0,0.000405,120]
[421360668,1777495851000,-1687.21042561,0.000405,30]
[421360667,1777495851000,-442.34005905,0.00040463,120]
[421360671,1777495851000,-157.30420751,0.00040521,7]
[421360672,1777495851000,-293.33,0.00040546,120]
[421360670,1777495851000,-997.85,0.00040521,120]
[421360665,1777495851000,-255.64,0.00040446,120]
[421360664,1777495851000,-997.85,0.00040421,120]
[421360662,1777495851000,-8632.95,0.00040419,120]
[421360663,1777495851000,-296.11,0.00040419,120]
[421360661,1777495851000,-1279.3,0.00040419,120]
[421360660,1777495851000,-461.27,0.00040419,120]
[421360687,1777495851000,-342963.04062241,0.000407,6]
[421360666,1777495851000,-178.95,0.00040446,120]
[421360691,1777495851000,-191.31926667,0.00040793,2]
[421360685,1777495851000,-189.80777703,0.00040692,120]
[421360689,1777495851000,-2399.46,0.00040734,2]
[421360684,1777495851000,-197.62691828,0.00040692,120]
[421360712,1777495851000,-191.31926667,0.00040993,2]
[421360714,1777495851000,-32662.17233872,0.00041,55]
[421360709,1777495851000,-152.16569212,0.00040966,120]
[421360707,1777495851000,-4621.53951231,0.0004095,30]
[421360711,1777495851000,-15613.4500334,0.0004099,120]
[421360708,1777495851000,-197.62691828,0.00040966,120]
[421360706,1777495851000,-16023.09272268,0.0004095,70]
[421360702,1777495851000,-500.0,0.000409,14]
[421360705,1777495851000,-202835.0,0.0004095,60]
[421360700,1777495851000,-500.0,0.00040853,60]
[421360701,1777495851000,-169.0,0.000409,120]
[421360698,1777495851000,-506.0,0.00040842,17]
[421360710,1777495851000,-500.0,0.00040986,120]
[421360703,1777495851000,-997.85,0.00040921,120]
[421360695,1777495851000,-188.16819271,0.000408,60]
[421360699,1777495851000,-992.66030986,0.0004085,30]
[421360713,1777495851000,-160.84614472,0.00040996,120]
[421360690,1777495851000,-150.0,0.0004075,120]
[421360686,1777495851000,-152.16569212,0.00040692,120]
[421360688,1777495851000,-997.85,0.00040721,120]
[421360694,1777495851000,-157.30420751,0.00040795,7]
[421360692,1777495851000,-2335.42,0.00040795,60]
[421360693,1777495851000,-1122.48,0.00040795,60]
[421360696,1777495851000,-152.0,0.000408,120]
[421360697,1777495851000,-997.85,0.00040821,120]
[421360704,1777495851000,-209.0,0.0004093,30]
[421360723,1777495852000,-774.6985844,0.000293,7]
[421360727,1777495852000,-1000.0,0.00029232,30]
[421360726,1777495852000,-1000.0,0.00028931,7]
[421360724,1777495852000,-1690.5913692,0.000293,7]
[421360730,1777495852000,-81747.95,0.000348,7]
[421360722,1777495852000,-2095.592,0.000293,7]
[421360716,1777495852000,-2193.9605744,0.00041,55]
[421360718,1777495852000,-1000.0,0.0002863,2]
[421360720,1777495852000,-15393.70289451,0.000293,7]
[421360719,1777495852000,-7864.94318182,0.000293,7]
[421360717,1777495852000,-2287.0,0.00022154,7]
[421360715,1777495852000,-383.08942024,0.00041,55]
[421360729,1777495852000,-81747.95,0.000326,7]
[421360721,1777495852000,-32508.88239924,0.000293,7]
[421360728,1777495852000,-20548.22213624,0.000293,7]
[421360725,1777495852000,-871.31743459,0.000293,7]
[421360732,1777495852000,-554.0,0.00035,30]
[421360731,1777495852000,-244.79252,0.00035,7]
[421360746,1777495852000,-3756.52735025,0.000385,7]
[421360744,1777495852000,-758.54846512,0.000385,7]
[421360741,1777495852000,-244.79252,0.0003794,7]
[421360739,1777495852000,-300.0,0.0003794,2]
[421360742,1777495852000,-47.54846512,0.00038062,23]
[421360745,1777495852000,-244.79252,0.00037101,7]
[421360740,1777495852000,-300.0,0.0003794,2]
[421360736,1777495852000,-244.79252,0.00037101,7]
[421360737,1777495852000,-173.70748161,0.000379,7]
[421360738,1777495852000,-71.08503839,0.000379,7]
[421360733,1777495852000,-2287.0,0.00035,30]
[421360734,1777495852000,-8.53942757,0.000364,7]
[421360735,1777495852000,-236.25309243,0.000364,7]
[421360743,1777495852000,-452.45153488,0.00038062,23]
[421360775,1777495853000,-139793.14410927,0.00041,120]
[421360766,1777495853000,-164.0,0.00041,120]
[421360769,1777495853000,-2003.17188878,0.00041,60]
[421360770,1777495853000,-622.0,0.00041,30]
[421360773,1777495853000,-175.28789488,0.00041,60]
[421360780,1777495853000,-193.155,0.00041,43]
[421360776,1777495853000,-173492.57427088,0.00041,10]
[421360792,1777495853000,-195.2247118,0.00041095,2]
[421360771,1777495853000,-758.6299,0.00041,60]
[421360778,1777495853000,-407.61364703,0.00041,5]
[421360777,1777495853000,-28144.98757669,0.00041,7]
[421360779,1777495853000,-150.0,0.00041,120]
[421360772,1777495853000,-254.49,0.00041,30]
[421360790,1777495853000,-630.35,0.00041087,2]
[421360765,1777495853000,-122983.61821119,0.00041,120]
[421360791,1777495853000,-153.33511448,0.00041095,2]
[421360774,1777495853000,-37670.27133755,0.00041,30]
[421360764,1777495853000,-396.0,0.00041,30]
[421360768,1777495853000,-619.17106426,0.00041,30]
[421360767,1777495853000,-1390.9481958,0.00041,120]
[421360748,1777495853000,-1000.0,0.00027854,7]
[421360750,1777495853000,-1000.0,0.00028767,2]
[421360749,1777495853000,-1000.0,0.0002831,30]
[421360752,1777495853000,-1000.0,0.0002968,30]
[421360751,1777495853000,-1000.0,0.00029223,7]
[421360747,1777495853000,-1000.0,0.00027398,2]
[421360754,1777495853000,-2201.0,0.000378,30]
[421360762,1777495853000,-81747.95,0.000407,7]
[421360753,1777495853000,-1000.0,0.00030136,2]
[421360756,1777495853000,-244.79252,0.000379,7]
[421360758,1777495853000,-244.79253,0.0003794,7]
[421360757,1777495853000,-300.0,0.0003794,2]
[421360763,1777495853000,-14760.77766664,0.00041,55]
[421360761,1777495853000,-81747.95,0.000396,7]
[421360760,1777495853000,-77232.87418463,0.000385,7]
[421360759,1777495853000,-500.0,0.00038062,23]
[421360755,1777495853000,-486.0,0.000378,30]
[421360781,1777495853000,-997.99946667,0.00041021,120]
[421360782,1777495853000,-1139.7,0.00041041,120]
[421360783,1777495853000,-240.47,0.00041045,120]
[421360819,1777495853000,-500.0,0.00041095,2]
[421360810,1777495853000,-1118.29,0.00041095,30]
[421360811,1777495853000,-1118.3,0.00041095,30]
[421360818,1777495853000,-500.0,0.00041095,2]
[421360809,1777495853000,-1118.29,0.00041095,30]
[421360814,1777495853000,-500.0,0.00041095,2]
[421360816,1777495853000,-500.0,0.00041095,2]
[421360817,1777495853000,-500.0,0.00041095,2]
[421360813,1777495853000,-500.0,0.00041095,2]
[421360815,1777495853000,-500.0,0.00041095,2]
[421360812,1777495853000,-1646.93,0.00041095,30]
[421360820,1777495853000,-500.0,0.00041095,2]
[421360825,1777495853000,-5334.18,0.00041095,2]
[421360821,1777495853000,-500.0,0.00041095,2]
[421360824,1777495853000,-5334.18,0.00041095,2]
[421360822,1777495853000,-500.0,0.00041095,2]
[421360793,1777495853000,-150.0,0.00041095,2]
[421360807,1777495853000,-500.0,0.00041095,2]
[421360808,1777495853000,-464.55032003,0.00041095,2]
[421360823,1777495853000,-201.13525257,0.00041095,2]
[421360803,1777495853000,-500.0,0.00041095,2]
[421360787,1777495853000,-450.0,0.0004107,3]
[421360802,1777495853000,-500.0,0.00041095,2]
[421360784,1777495853000,-1689.386,0.00041054,30]
[421360788,1777495853000,-300.0,0.0004107,3]
[421360789,1777495853000,-1470.84,0.00041087,2]
[421360785,1777495853000,-253.0,0.00041068,120]
[421360806,1777495853000,-500.0,0.00041095,2]
[421360796,1777495853000,-500.0,0.00041095,2]
[421360786,1777495853000,-157.30420751,0.00041069,7]
[421360795,1777495853000,-250.0,0.00041095,120]
[421360805,1777495853000,-500.0,0.00041095,2]
[421360798,1777495853000,-500.0,0.00041095,2]
[421360801,1777495853000,-500.0,0.00041095,2]
[421360804,1777495853000,-500.0,0.00041095,2]
[421360800,1777495853000,-500.0,0.00041095,2]
[421360799,1777495853000,-500.0,0.00041095,2]
[421360794,1777495853000,-918.20663932,0.00041095,2]
[421360797,1777495853000,-500.0,0.00041095,2]
[421360866,1777495854000,-500.0,0.00041096,30]
[421360868,1777495854000,-500.0,0.00041096,30]
[421360861,1777495854000,-500.0,0.00041096,30]
[421360864,1777495854000,-500.0,0.00041096,30]
[421360865,1777495854000,-500.0,0.00041096,30]
[421360860,1777495854000,-500.0,0.00041096,30]
[421360862,1777495854000,-500.0,0.00041096,30]
[421360869,1777495854000,-500.0,0.00041096,30]
[421360858,1777495854000,-500.0,0.00041096,30]
[421360870,1777495854000,-500.0,0.00041096,30]
[421360863,1777495854000,-500.0,0.00041096,30]
[421360859,1777495854000,-500.0,0.00041096,30]
[421360867,1777495854000,-810.91502959,0.00041096,30]
[421360872,1777495854000,-500.0,0.00041096,30]
[421360876,1777495854000,-217.33846,0.00041096,120]
[421360873,1777495854000,-217.33846,0.00041096,120]
[421360871,1777495854000,-500.0,0.00041096,30]
[421360884,1777495854000,-3029.841316,0.00041096,120]
[421360883,1777495854000,-217.33846,0.00041096,120]
[421360874,1777495854000,-217.33846,0.00041096,120]
[421360875,1777495854000,-217.33846,0.00041096,120]
[421360877,1777495854000,-217.33846,0.00041096,120]
[421360881,1777495854000,-217.33846,0.00041096,120]
[421360878,1777495854000,-3029.841316,0.00041096,120]
[421360879,1777495854000,-217.33846,0.00041096,120]
[421360880,1777495854000,-3029.841316,0.00041096,120]
[421360886,1777495854000,-3029.841316,0.00041096,120]
[421360855,1777495854000,-500.0,0.00041096,30]
[421360882,1777495854000,-3029.841316,0.00041096,120]
[421360853,1777495854000,-500.0,0.00041096,30]
[421360840,1777495854000,-5334.18,0.00041095,2]
[421360854,1777495854000,-500.0,0.00041096,30]
[421360887,1777495854000,-217.33846,0.00041096,120]
[421360831,1777495854000,-5334.18,0.00041095,2]
[421360828,1777495854000,-5334.18,0.00041095,2]
[421360830,1777495854000,-5334.18,0.00041095,2]
[421360829,1777495854000,-5334.18,0.00041095,2]
[421360826,1777495854000,-5334.18,0.00041095,2]
[421360827,1777495854000,-5334.18,0.00041095,2]
[421360833,1777495854000,-5334.18,0.00041095,2]
[421360844,1777495854000,-5334.18,0.00041095,2]
[421360834,1777495854000,-5334.18,0.00041095,2]
[421360841,1777495854000,-5334.18,0.00041095,2]
[421360832,1777495854000,-5334.18,0.00041095,2]
[421360843,1777495854000,-5334.18,0.00041095,2]
[421360852,1777495854000,-500.0,0.00041096,30]
[421360835,1777495854000,-5334.18,0.00041095,2]
[421360836,1777495854000,-5334.18,0.00041095,2]
[421360838,1777495854000,-5334.18,0.00041095,2]
[421360837,1777495854000,-5334.18,0.00041095,2]
[421360839,1777495854000,-5334.18,0.00041095,2]
[421360847,1777495854000,-5334.24698514,0.00041095,2]
[421360848,1777495854000,-500.0,0.00041095,2]
[421360845,1777495854000,-5334.18,0.00041095,2]
[421360849,1777495854000,-500.2190038,0.00041095,2]
[421360850,1777495854000,-500.0,0.00041095,120]
[421360856,1777495854000,-500.0,0.00041096,30]
[421360857,1777495854000,-500.0,0.00041096,30]
[421360846,1777495854000,-5334.18,0.00041095,2]
[421360851,1777495854000,-1380.4121634,0.00041096,120]
[421360842,1777495854000,-5334.18,0.00041095,2]
[421360896,1777495854000,-3029.841316,0.00041096,120]
[421360907,1777495854000,-217.338463,0.00041096,120]
[421360898,1777495854000,-3029.841316,0.00041096,120]
[421360913,1777495854000,-452.586582,0.00041096,120]
[421360923,1777495854000,-452.586582,0.00041096,120]
[421360924,1777495854000,-452.586582,0.00041096,120]
[421360927,1777495854000,-452.586582,0.00041096,120]
[421360925,1777495854000,-452.586582,0.00041096,120]
[421360926,1777495854000,-452.586582,0.00041096,120]
[421360928,1777495854000,-452.586582,0.00041096,120]
[421360931,1777495854000,-452.586582,0.00041096,120]
[421360933,1777495854000,-500.0,0.00041096,120]
[421360932,1777495854000,-452.586584,0.00041096,120]
[421360929,1777495854000,-452.586582,0.00041096,120]
[421360930,1777495854000,-452.586582,0.00041096,120]
[421360934,1777495854000,-500.0,0.00041096,120]
[421360918,1777495854000,-452.586582,0.00041096,120]
[421360937,1777495854000,-500.0,0.00041096,120]
[421360938,1777495854000,-500.0,0.00041096,120]
[421360935,1777495854000,-500.0,0.00041096,120]
[421360945,1777495854000,-500.0,0.00041096,120]
[421360939,1777495854000,-500.0,0.00041096,120]
[421360941,1777495854000,-500.0,0.00041096,120]
[421360942,1777495854000,-500.0,0.00041096,120]
[421360943,1777495854000,-500.0,0.00041096,120]
[421360940,1777495854000,-500.0,0.00041096,120]
[421360944,1777495854000,-500.0,0.00041096,120]
[421360947,1777495854000,-500.0,0.00041096,120]
[421360948,1777495854000,-500.0,0.00041096,120]
[421360946,1777495854000,-500.0,0.00041096,120]
[421360889,1777495854000,-217.33846,0.00041096,120]
[421360936,1777495854000,-500.0,0.00041096,120]
[421360920,1777495854000,-452.586582,0.00041096,120]
[421360949,1777495854000,-500.0,0.00041096,120]
[421360912,1777495854000,-3029.841326,0.00041096,120]
[421360922,1777495854000,-452.586582,0.00041096,120]
[421360897,1777495854000,-217.33846,0.00041096,120]
[421360885,1777495854000,-217.33846,0.00041096,120]
[421360891,1777495854000,-217.33846,0.00041096,120]
[421360890,1777495854000,-3029.841316,0.00041096,120]
[421360892,1777495854000,-217.33846,0.00041096,120]
[421360894,1777495854000,-217.33846,0.00041096,120]
[421360895,1777495854000,-3029.841316,0.00041096,120]
[421360893,1777495854000,-3029.841316,0.00041096,120]
[421360903,1777495854000,-217.33846,0.00041096,120]
[421360899,1777495854000,-217.33846,0.00041096,120]
[421360901,1777495854000,-217.33846,0.00041096,120]
[421360902,1777495854000,-3029.841316,0.00041096,120]
[421360904,1777495854000,-3029.841316,0.00041096,120]
[421360888,1777495854000,-3029.841316,0.00041096,120]
[421360910,1777495854000,-3029.841316,0.00041096,120]
[421360900,1777495854000,-3029.841316,0.00041096,120]
[421360916,1777495854000,-452.586582,0.00041096,120]
[421360917,1777495854000,-452.586582,0.00041096,120]
[421360914,1777495854000,-452.586582,0.00041096,120]
[421360919,1777495854000,-452.586582,0.00041096,120]
[421360915,1777495854000,-452.586582,0.00041096,120]
[421360921,1777495854000,-452.586582,0.00041096,120]
[421360906,1777495854000,-3029.841316,0.00041096,120]
[421360909,1777495854000,-3029.841316,0.00041096,120]
[421360908,1777495854000,-3029.841316,0.00041096,120]
[421360905,1777495854000,-217.33846,0.00041096,120]
[421360950,1777495854000,-500.0,0.00041096,120]
[421360911,1777495854000,-3029.841316,0.00041096,120]
[421360993,1777495855000,-500.0,0.00041096,120]
[421360998,1777495855000,-248.893748,0.00041096,120]
[421360986,1777495855000,-248.893748,0.00041096,120]
[421360985,1777495855000,-500.0,0.00041096,120]
[421360989,1777495855000,-151.0,0.00041096,120]
[421360991,1777495855000,-151.0,0.00041096,120]
[421360988,1777495855000,-248.893748,0.00041096,120]
[421360978,1777495855000,-248.893748,0.00041096,120]
[421360992,1777495855000,-248.893748,0.00041096,120]
[421360980,1777495855000,-151.0,0.00041096,120]
[421360994,1777495855000,-151.0,0.00041096,120]
[421360982,1777495855000,-151.0,0.00041096,120]
[421361000,1777495855000,-248.893748,0.00041096,120]
[421360995,1777495855000,-248.893748,0.00041096,120]
[421360990,1777495855000,-500.0,0.00041096,120]
[421360997,1777495855000,-151.0,0.00041096,120]
[421360996,1777495855000,-500.0,0.00041096,120]
[421360999,1777495855000,-500.0,0.00041096,120]
[421361001,1777495855000,-151.0,0.00041096,120]
[421361003,1777495855000,-248.893748,0.00041096,120]
[421361004,1777495855000,-151.0,0.00041096,120]
[421361010,1777495855000,-151.0,0.00041096,120]
[421361006,1777495855000,-151.0,0.00041096,120]
[421361002,1777495855000,-500.0,0.00041096,120]
[421360979,1777495855000,-500.0,0.00041096,120]
[421361007,1777495855000,-151.0,0.00041096,120]
[421360987,1777495855000,-500.0,0.00041096,120]
[421360972,1777495855000,-248.893748,0.00041096,120]
[421360966,1777495855000,-248.893748,0.00041096,120]
[421360977,1777495855000,-151.0,0.00041096,120]
[421361005,1777495855000,-248.893743,0.00041096,120]
[421360958,1777495855000,-248.893748,0.00041096,120]
[421360957,1777495855000,-500.0,0.00041096,120]
[421360952,1777495855000,-500.0,0.00041096,120]
[421360953,1777495855000,-500.0,0.00041096,120]
[421360956,1777495855000,-248.893748,0.00041096,120]
[421360954,1777495855000,-248.893748,0.00041096,120]
[421360955,1777495855000,-500.0,0.00041096,120]
[421360959,1777495855000,-500.0,0.00041096,120]
[421360960,1777495855000,-248.893748,0.00041096,120]
[421360961,1777495855000,-500.0,0.00041096,120]
[421360963,1777495855000,-500.0,0.00041096,120]
[421360981,1777495855000,-500.0,0.00041096,120]
[421360964,1777495855000,-248.893748,0.00041096,120]
[421360962,1777495855000,-248.893748,0.00041096,120]
[421360967,1777495855000,-500.0,0.00041096,120]
[421360971,1777495855000,-151.0,0.00041096,120]
[421360970,1777495855000,-500.0,0.00041096,120]
[421360969,1777495855000,-248.893748,0.00041096,120]
[421360968,1777495855000,-151.0,0.00041096,120]
[421360983,1777495855000,-248.893748,0.00041096,120]
[421360973,1777495855000,-500.0,0.00041096,120]
[421360984,1777495855000,-151.0,0.00041096,120]
[421360974,1777495855000,-151.0,0.00041096,120]
[421360976,1777495855000,-500.0,0.00041096,120]
[421360975,1777495855000,-248.893748,0.00041096,120]
[421360965,1777495855000,-500.0,0.00041096,120]